bitfinex/quotes_SOLUSD_20250217
["timestamp","ask_amount","ask_price","bid_price","bid_amount"]
[1739788954513,0.063,184.17,184.14,15.97828804]
[1739788954704,0.063,184.17,184.15,10.20445347]
[1739788955032,0.063,184.17,184.14,10.20445347]
[1739788955639,0.063,184.17,184.15,10.20445347]
[1739788955803,0.063,184.17,184.12,32.42104853]
[1739788955804,0.063,184.17,184.16,10.20445347]
[1739788956006,0.063,184.17,184.16,20.0]
[1739788956206,0.063,184.17,184.16,25.43]
[1739788957427,0.063,184.17,184.16,38.84184853]
[1739788957634,0.063,184.17,184.16,42.02292601]
[1739788957936,0.063,184.17,184.16,57.96853849]
[1739788958114,0.063,184.17,184.16,42.02292601]
[1739788958705,0.063,184.17,184.16,57.96853849]
[1739788959232,0.063,184.17,184.16,42.02292601]
[1739788959924,0.063,184.17,184.16,23.18107748]
[1739788960107,0.063,184.17,184.16,3.18107748]
[1739788961513,16.25959248,184.17,184.16,3.18107748]
[1739788962747,21.68949248,184.17,184.11,0.1129]
[1739788962916,15.94561248,184.14,184.11,0.1129]
[1739788963233,15.94561248,184.15,184.11,0.1129]
[1739788963831,15.94561248,184.14,184.11,0.1129]
[1739788964215,7.38928,184.17,184.11,0.1129]
[1739788964216,15.94561248,184.13,184.11,0.1129]
[1739788964431,15.94561248,184.13,184.12,3.18049206]
[1739788965532,2.08497,184.17,184.12,3.18049206]
[1739788965533,7.1383,184.17,184.12,3.18049206]
[1739788965737,15.94561248,184.16,184.12,3.18049206]
[1739788966240,17.90509248,184.17,184.12,3.18049206]
[1739788966850,15.94561248,184.15,184.12,3.18049206]
[1739788967737,15.94561248,184.15,184.13,3.18049206]
[1739788968440,15.94561248,184.16,184.13,3.18049206]
[1739788968915,16.00861248,184.17,184.13,3.18049206]
[1739788969234,16.00861248,184.17,184.13,8.61139206]
[1739788970021,16.00861248,184.17,184.14,3.18049206]
[1739788970531,16.00861248,184.17,184.12,0.063]
[1739788970532,16.00861248,184.17,184.12,5.4311]
[1739788970850,1.0,184.0,183.96,16.70747802]
[1739788971038,15.94561248,183.98,183.97,2.5081051]
[1739788971244,0.12549,183.97,183.96,16.70747802]
[1739788971432,15.22086356,183.97,183.96,16.70747802]
[1739788971830,5.56109,183.97,183.96,16.70747802]
[1739788972348,0.12549,183.97,183.96,16.70747802]
[1739788972534,20.25098,183.96,183.9,0.03]
[1739788972720,36.19659248,183.96,183.9,0.03]
[1739788973122,22.0,183.91,183.9,0.03]
[1739788973348,20.0,183.87,183.84,0.03]
[1739788973533,16.32208248,183.85,183.84,0.03]
[1739788975143,16.19659248,183.85,183.84,0.03]
[1739788975334,138.1298,183.89,183.84,0.03]
[1739788975521,15.94561248,183.86,183.84,0.03]
[1739788976259,15.94561248,183.87,183.84,0.03]
[1739788976562,15.94561248,183.88,183.84,0.03]
[1739788976772,15.94561248,183.87,183.84,0.03]
[1739788977439,15.94561248,183.89,183.84,0.03]
[1739788978549,15.94561248,183.89,183.82,15.97561248]
[1739788978774,15.94561248,183.9,183.82,15.97561248]
[1739788979157,15.94561248,183.88,183.82,5.47]
[1739788979358,15.94561248,183.89,183.82,21.41561248]
[1739788981865,15.94561248,183.9,183.83,15.94561248]
[1739788983481,15.94561248,183.89,183.83,5.4398]
[1739788983657,15.94561248,183.88,183.83,5.4398]
[1739788984690,15.94561248,183.89,183.84,20.0]
[1739788984984,15.94561248,183.9,183.84,20.0]
[1739788985151,15.94561248,183.91,183.84,35.94561248]
[1739788985358,15.94561248,183.91,183.84,15.94561248]
[1739788986490,15.94561248,183.91,183.85,5.4392]
[1739788987409,15.94561248,183.9,183.85,5.4392]
[1739788987612,15.94561248,183.91,183.85,5.4392]
[1739788988816,15.94561248,183.9,183.85,5.4392]
[1739788989001,15.94561248,183.91,183.85,5.4392]
[1739788989513,15.94561248,183.9,183.85,5.4392]
[1739788989713,15.94561248,183.89,183.85,5.4392]
[1739788990008,15.94561248,183.9,183.85,5.4392]
[1739788990578,15.94561248,183.9,183.84,5.4395]
[1739788992126,16.00861248,183.9,183.84,5.4395]
[1739788992814,0.063,183.9,183.84,19.0382]
[1739788993396,0.063,183.9,183.83,15.94561248]
[1739788994612,0.063,183.9,183.84,19.0382]
[1739788995813,0.063,183.9,183.85,15.94561248]
[1739788996511,0.063,183.9,183.86,5.4389]
[1739789002605,0.063,183.9,183.84,19.0382]
[1739789004024,0.063,183.9,183.84,19.0682]
[1739789008629,0.063,183.9,183.84,29.3059112]
[1739789009910,0.063,183.9,183.84,10.2677112]
[1739789010630,10.3007112,183.9,183.84,0.03]
[1739789011229,10.3007112,183.9,183.84,5.4695]
[1739789012247,10.2377112,183.86,183.84,0.03]
[1739789012431,10.4886912,183.85,183.84,0.03]
[1739789013008,0.12549,183.85,183.84,0.03]
[1739789013330,0.12549,183.86,183.84,0.03]
[1739789013510,0.12549,183.85,183.84,0.03]
[1739789018142,10.3632012,183.85,183.84,0.03]
[1739789020930,11.9108012,183.85,183.84,0.03]
[1739789021521,17.6009812,183.85,183.84,0.03]
[1739789027153,15.9278912,183.85,183.84,0.03]
[1739789027324,10.4886912,183.85,183.84,0.03]
[1739789031253,20.0,183.85,183.84,0.03]
[1739789031459,10.3007112,183.86,183.84,0.03]
[1739789031959,10.2377112,183.85,183.84,0.03]
[1739789033666,0.063,183.86,183.84,0.03]
[1739789034040,10.3007112,183.86,183.84,0.03]
[1739789035134,10.2377112,183.85,183.84,0.03]
[1739789036256,10.3632012,183.85,183.84,0.03]
[1739789036462,18.41886343,183.85,183.84,0.03]
[1739789037548,23.85806343,183.85,183.84,0.03]
[1739789038165,43.85806343,183.85,183.84,0.03]
[1739789038535,193.76991196,183.85,183.84,0.03]
[1739789038741,174.76991196,183.85,183.84,0.03]
[1739789038960,20.0,183.82,183.79,0.03]
[1739789039162,10.4886912,183.8,183.79,0.03]
[1739789040167,15.9292912,183.8,183.79,0.03]
[1739789044083,10.4886912,183.8,183.79,0.03]
[1739789046770,15.9292912,183.8,183.79,0.03]
[1739789048161,16.0547812,183.8,183.79,0.03]
[1739789048459,23.85946343,183.8,183.79,0.03]
[1739789054356,78.22215676,183.8,183.79,0.03]
[1739789054851,20.25098,183.77,183.76,0.03]
[1739789055051,30.6141812,183.77,183.76,0.03]
[1739789056177,43.86036343,183.77,183.76,0.03]
[1739789057453,57.27221196,183.77,183.76,0.03]
[1739789058977,43.86036343,183.77,183.76,0.03]
[1739789059686,5.69308,183.75,183.74,0.03]
[1739789059984,15.9307912,183.75,183.74,0.03]
[1739789066889,16.0562812,183.75,183.74,0.03]
[1739789067078,37.27281196,183.75,183.74,0.03]
[1739789068386,23.86096343,183.75,183.74,0.03]
[1739789069285,16.0562812,183.75,183.74,0.03]
[1739789072198,10.4886912,183.75,183.74,0.03]
[1739789073779,10.3632012,183.75,183.74,0.03]
[1739789074103,10.4886912,183.75,183.74,0.03]
[1739789074278,15.9307912,183.75,183.74,0.03]
[1739789076910,16.0562812,183.75,183.74,0.03]
[1739789077597,37.20701751,183.75,183.74,0.03]
[1739789078877,20.37647,183.72,183.71,0.03]
[1739789079201,30.6141812,183.72,183.71,0.03]
[1739789079884,38.35306898,183.72,183.71,0.03]
[1739789080605,57.20791751,183.72,183.71,0.03]
[1739789081394,43.79606898,183.72,183.71,0.03]
[1739789083704,38.35306898,183.72,183.71,0.03]
[1739789084189,43.79606898,183.72,183.71,0.03]
[1739789088405,43.79606898,183.72,183.71,0.03]
[1739789093606,38.35306898,183.72,183.71,0.03]
[1739789095100,43.79606898,183.72,183.71,0.03]
[1739789095324,38.35306898,183.72,183.71,0.03]
[1739789095820,38.22757898,183.72,183.71,0.03]
[1739789097493,38.10208898,183.72,183.71,0.03]
[1739789097902,38.22757898,183.72,183.71,0.03]
[1739789099819,18.22757898,183.72,183.71,0.03]
[1739789100628,23.67057898,183.72,183.71,0.03]
[1739789102631,23.79606898,183.72,183.71,0.03]
[1739789106936,37.20791751,183.72,183.71,0.03]
[1739789107535,38.20791751,183.72,183.71,0.0001]
[1739789107735,20.37647,183.68,183.65,0.03]
[1739789107940,10.3632012,183.66,183.65,0.03]
[1739789108619,10.6141812,183.66,183.65,0.03]
[1739789108828,16.0589812,183.66,183.65,0.03]
[1739789111633,20.37647,183.63,183.62,0.03]
[1739789111822,38.35306898,183.63,183.62,0.03]
[1739789113038,57.21061751,183.63,183.62,0.03]
[1739789113238,13.78831853,183.61,183.52,7.7422]
[1739789113418,10.2377112,183.55,183.52,7.7422]
[1739789113825,10.3632012,183.54,183.52,7.7422]
[1739789115133,10.3632012,183.54,183.49,5.4498]
[1739789115334,10.2377112,183.53,183.48,13.2614]
[1739789116039,0.12549,183.53,183.48,13.2614]
[1739789116231,10.3632012,183.53,183.48,13.2614]
[1739789116427,10.2377112,183.52,183.48,13.2614]
[1739789116820,0.12549,183.52,183.48,13.2614]
[1739789117320,10.3632012,183.52,183.48,13.2614]
[1739789118232,10.2377112,183.53,183.48,13.2614]
[1739789118435,0.12549,183.52,183.48,13.2614]
[1739789118754,10.2377112,183.57,183.5,10.2377112]
[1739789118958,0.12549,183.55,183.51,5.4492]
[1739789119261,10.2377112,183.57,183.51,5.4492]
[1739789119754,10.3632012,183.58,183.51,15.6869112]
[1739789120557,10.2377112,183.57,183.51,15.6869112]
[1739789120862,10.2377112,183.58,183.51,15.6869112]
[1739789121056,10.2377112,183.56,183.51,5.4492]
[1739789121646,10.2377112,183.55,183.51,5.4492]
[1739789121930,10.2377112,183.56,183.51,5.4492]
[1739789122343,30.2377112,183.57,183.51,5.4492]
[1739789122520,10.2377112,183.56,183.49,10.2377112]
[1739789122727,10.2377112,183.54,183.49,5.4496]
[1739789123264,10.3632012,183.56,183.49,15.6873112]
[1739789123932,10.3632012,183.56,183.49,5.4496]
[1739789123933,10.2377112,183.55,183.49,5.4496]
[1739789124245,10.2377112,183.54,183.49,5.4496]
[1739789125631,10.2377112,183.5,183.48,0.03]
[1739789125936,10.2377112,183.49,183.48,0.03]
[1739789126145,10.4886912,183.49,183.48,0.03]
[1739789126654,10.2377112,183.51,183.48,0.03]
[1739789127161,0.12549,183.5,183.48,0.03]
[1739789127342,10.2377112,183.53,183.48,0.03]
[1739789127538,141.9483,183.55,183.48,0.03]
[1739789127539,15.6860112,183.55,183.48,10.2677112]
[1739789127758,10.2377112,183.56,183.49,10.2377112]
[1739789128135,0.12549,183.55,183.49,10.2377112]
[1739789129338,20.0,183.51,183.48,0.03]
[1739789129669,10.3632012,183.49,183.48,0.03]
[1739789130036,10.6141812,183.49,183.48,0.03]
[1739789130540,10.4886912,183.49,183.48,0.03]
[1739789131038,10.6141812,183.49,183.48,0.03]
[1739789131365,16.0639812,183.49,183.48,0.03]
[1739789132743,30.3122112,183.49,183.36,6.9664]
[1739789132948,10.2377112,183.42,183.36,6.9664]
[1739789133177,0.12549,183.41,183.36,1.5127]
[1739789134653,10.4886912,183.43,183.36,37.2041112]
[1739789134844,0.12549,183.43,183.36,37.2041112]
[1739789135245,0.12549,183.43,183.37,10.2377112]
[1739789135462,0.12549,183.43,183.38,10.2377112]
[1739789136563,10.2377112,183.46,183.39,10.2377112]
[1739789136768,10.2377112,183.47,183.4,10.2377112]
[1739789136952,10.2377112,183.47,183.41,6.0094]
[1739789137348,10.2377112,183.47,183.42,5.4519]
[1739789137955,10.2377112,183.48,183.42,5.4519]
[1739789140273,10.2377112,183.47,183.42,5.4519]
[1739789140675,10.2377112,183.48,183.42,5.4519]
[1739789141048,10.2377112,183.48,183.42,15.6896112]
[1739789141384,10.3007112,183.49,183.42,15.6896112]
[1739789142346,10.2377112,183.48,183.42,15.6896112]
[1739789144375,0.063,183.49,183.45,10.2377112]
[1739789144765,0.063,183.49,183.44,10.2377112]
[1739789145065,0.063,183.49,183.43,11.7557112]
[1739789145273,0.12549,183.43,183.34,5.4543]
[1739789145445,10.2377112,183.44,183.37,10.2377112]
[1739789146363,0.12549,183.45,183.37,10.2377112]
[1739789146685,10.2377112,183.44,183.37,10.2377112]
[1739789146880,10.3632012,183.45,183.38,15.6908112]
[1739789147778,10.3632012,183.45,183.42,0.03]
[1739789151095,10.2377112,183.44,183.42,0.03]
[1739789151261,0.12549,183.45,183.42,0.03]
[1739789151262,10.3632012,183.43,183.42,0.03]
[1739789152669,10.4886912,183.43,183.42,0.03]
[1739789152864,15.9402912,183.43,183.42,0.03]
[1739789154594,16.0657812,183.43,183.42,0.03]
[1739789154884,71.42847453,183.43,183.42,0.03]
[1739789155094,79.16736231,183.43,183.42,0.03]
[1739789155388,79.16736231,183.43,183.33,0.04176997]
[1739789155389,1.0,183.39,183.33,0.04176997]
[1739789155592,10.2377112,183.35,183.33,0.04176997]
[1739789155984,0.12549,183.34,183.33,0.04176997]
[1739789156168,10.3632012,183.34,183.33,0.04176997]
[1739789156495,10.4886912,183.34,183.33,0.04176997]
[1739789156705,10.6141812,183.34,183.33,0.04176997]
[1739789157014,16.0684812,183.34,183.33,0.04176997]
[1739789157777,29.48032973,183.34,183.33,0.04176997]
[1739789157974,30.48032973,183.34,183.33,0.04176997]
[1739789158267,0.12549,183.32,183.27,0.03]
[1739789158569,10.3632012,183.3,183.27,0.03]
[1739789158905,0.12549,183.29,183.27,0.03]
[1739789159079,10.2377112,183.31,183.27,0.03]
[1739789159395,0.12549,183.32,183.27,0.03]
[1739789159598,10.2377112,183.34,183.27,10.2677112]
[1739789159798,10.2377112,183.35,183.29,5.4558]
[1739789160095,10.2377112,183.36,183.29,15.6935112]
[1739789160304,0.12549,183.35,183.3,10.2377112]
[1739789160600,0.12549,183.35,183.29,5.4558]
[1739789160601,16.09351756,183.36,183.29,21.54931756]
[1739789161000,0.12549,183.41,183.31,16.09351756]
[1739789161162,16.09351756,183.39,183.33,16.09351756]
[1739789161792,16.09351756,183.39,183.32,22.31901756]
[1739789161996,16.09351756,183.38,183.33,5.4546]
[1739789162969,16.09351756,183.39,183.33,5.4546]
[1739789163574,16.09351756,183.4,183.33,21.54811756]
[1739789163895,0.12549,183.42,183.35,16.09351756]
[1739789163896,16.21900756,183.42,183.35,16.09351756]
[1739789164071,0.12549,183.41,183.35,16.09351756]
[1739789164273,16.21900756,183.41,183.34,16.09351756]
[1739789164672,0.12549,183.41,183.35,16.09351756]
[1739789165095,16.21900756,183.41,183.34,16.09351756]
[1739789165502,16.21900756,183.41,183.36,5.4537]
[1739789165686,16.09351756,183.41,183.36,5.4537]
[1739789166214,16.09351756,183.4,183.36,5.4537]
[1739789166695,0.12549,183.4,183.36,5.4537]
[1739789166896,0.25098,183.4,183.36,5.4537]
[1739789167267,0.12549,183.4,183.36,5.4537]
[1739789167469,22.70943631,183.46,183.36,5.4537]
[1739789167777,0.12549,183.4,183.36,5.4537]
[1739789169002,16.09351756,183.42,183.36,21.54721756]
[1739789169188,16.09351756,183.44,183.37,16.09351756]
[1739789169787,0.25098,183.43,183.37,16.09351756]
[1739789170286,16.34449756,183.43,183.37,16.09351756]
[1739789171201,16.34449756,183.43,183.38,5.4531]
[1739789171682,0.12549,183.43,183.38,21.54661756]
[1739789171884,0.12549,183.43,183.39,16.09351756]
[1739789172382,0.12549,183.43,183.38,21.54661756]
[1739789173317,0.25098,183.44,183.38,21.54661756]
[1739789173674,16.09351756,183.45,183.39,16.09351756]
[1739789173999,0.063,183.43,183.41,16.09351756]
[1739789174409,0.063,183.43,183.42,16.09351756]
[1739789174989,13.10563764,183.48,183.42,16.09351756]
[1739789175193,13.10563764,183.48,183.46,16.09351756]
[1739789175416,13.10563764,183.48,183.47,5.4504]
[1739789176080,13.10563764,183.48,183.47,21.54391756]
[1739789177289,0.063,183.49,183.47,21.54391756]
[1739789177486,0.0001,183.49,183.48,22.58561756]
[1739789178607,0.0001,183.49,183.48,28.03571756]
[1739789180587,0.0001,183.49,183.48,16.09351756]
[1739789180789,0.0001,183.49,183.42,16.09351756]
[1739789180790,21.0,183.42,183.29,5.4556]
[1739789181018,1.0,183.44,183.31,16.09351756]
[1739789181019,16.09351756,183.39,183.31,16.09351756]
[1739789181319,0.25098,183.38,183.31,16.09351756]
[1739789183509,16.09351756,183.43,183.35,16.09351756]
[1739789183913,0.25098,183.42,183.35,16.09351756]
[1739789184110,0.12549,183.42,183.37,16.09351756]
[1739789184516,0.25098,183.44,183.37,16.09351756]
[1739789184696,0.25098,183.44,183.38,16.09351756]
[1739789184896,0.25098,183.44,183.33,16.12351756]
[1739789184897,16.34449756,183.44,183.36,16.09351756]
[1739789185221,16.09351756,183.43,183.36,16.09351756]
[1739789185420,0.12549,183.42,183.36,16.09351756]
[1739789186516,0.25098,183.43,183.36,16.09351756]
[1739789186826,0.25098,183.43,183.37,16.09351756]
[1739789187497,0.25098,183.43,183.37,21.54691756]
[1739789188112,0.12549,183.44,183.37,21.54691756]
[1739789188916,0.12549,183.43,183.37,21.54691756]
[1739789189325,16.21900756,183.43,183.36,0.03]
[1739789189501,16.21900756,183.43,183.36,5.4837]
[1739789189702,0.12549,183.42,183.36,21.57721756]
[1739789190313,0.12549,183.42,183.37,16.09351756]
[1739789190915,0.12549,183.42,183.38,5.4531]
[1739789191408,16.34449756,183.45,183.38,5.4531]
[1739789191726,16.09351756,183.44,183.38,5.4531]
[1739789191923,0.12549,183.43,183.38,5.4531]
[1739789193241,16.09351756,183.44,183.38,5.4531]
[1739789193544,16.34449756,183.45,183.38,21.54661756]
[1739789193718,16.09351756,183.46,183.39,16.09351756]
[1739789194135,0.25098,183.45,183.39,16.09351756]
[1739789194418,16.34449756,183.45,183.38,21.54661756]
[1739789195111,16.34449756,183.45,183.38,35.17941756]
[1739789195624,0.25098,183.45,183.39,16.09351756]
[1739789197221,0.25098,183.45,183.4,5.4525]
[1739789198243,16.09351756,183.45,183.4,5.4525]
[1739789199243,16.34449756,183.46,183.39,21.54631756]
[1739789200718,16.09351756,183.45,183.39,5.4528]
[1739789202039,16.09351756,183.45,183.39,16.09351756]
[1739789202554,16.34449756,183.46,183.39,16.09351756]
[1739789203546,0.25098,183.46,183.4,21.54601756]
[1739789203724,0.25098,183.46,183.41,16.09351756]
[1739789203915,16.09351756,183.48,183.42,16.09351756]
[1739789204346,0.25098,183.47,183.42,16.09351756]
[1739789204845,0.25098,183.47,183.41,16.09351756]
[1739789205232,0.25098,183.47,183.42,16.09351756]
[1739789205845,0.25098,183.47,183.43,5.4516]
[1739789206747,0.25098,183.47,183.41,16.09351756]
[1739789207245,0.12549,183.47,183.41,16.09351756]
[1739789208351,0.25098,183.47,183.41,16.09351756]
[1739789208555,0.25098,183.47,183.42,5.4519]
[1739789209448,16.09351756,183.48,183.42,21.54541756]
[1739789210621,16.09351756,183.48,183.42,5.4519]
[1739789212034,16.09351756,183.48,183.42,5.4519]
[1739789212735,10.28621808,183.48,183.42,5.4519]
[1739789213345,0.25098,183.48,183.43,10.28621808]
[1739789214655,0.25098,183.48,183.44,5.4513]
[1739789215950,0.0001,183.49,183.44,15.73751808]
[1739789216253,0.0001,183.49,183.47,10.28621808]
[1739789216743,0.0001,183.49,183.48,5.4501]
[1739789218152,0.0001,183.49,183.46,10.28621808]
[1739789218352,0.0001,183.49,183.47,15.73661808]
[1739789218743,0.0001,183.49,183.48,10.28621808]
[1739789220253,0.0001,183.49,183.48,17.73631808]
[1739789222569,12.83003516,183.59,183.51,1.0]
[1739789222743,12.83003516,183.59,183.55,16.04780686]
[1739789223071,12.83003516,183.59,183.52,1.0]
[1739789223072,12.83003516,183.59,183.57,16.04780686]
[1739789223974,12.83003516,183.59,183.58,16.04780686]
[1739789224474,12.83003516,183.59,183.58,21.49500686]
[1739789224972,0.063,183.62,183.58,21.49500686]
[1739789225572,16.11080686,183.62,183.56,16.04780686]
[1739789225746,0.063,183.62,183.56,16.04780686]
[1739789225951,0.063,183.62,183.57,16.04780686]
[1739789226290,0.063,183.62,183.58,16.04780686]
[1739789226872,0.063,183.62,183.56,16.04780686]
[1739789227569,0.063,183.62,183.58,16.04780686]
[1739789228971,0.063,183.62,183.59,16.04780686]
[1739789229550,0.063,183.62,183.6,21.49440686]
[1739789229956,0.063,183.62,183.6,5.4466]
[1739789231279,0.063,183.62,183.59,5.4468]
[1739789231479,0.18849,183.62,183.58,5.4472]
[1739789231784,0.12549,183.6,183.54,16.04780686]
[1739789231972,16.42427686,183.6,183.53,23.81420686]
[1739789232160,16.42427686,183.6,183.53,16.04780686]
[1739789232855,0.37647,183.6,183.55,16.04780686]
[1739789233067,16.11080686,183.62,183.55,16.04780686]
[1739789233275,0.063,183.62,183.58,16.04780686]
[1739789233763,0.063,183.62,183.59,16.04780686]
[1739789234167,0.063,183.62,183.61,16.04780686]
[1739789234885,0.063,183.62,183.61,21.49410686]
[1739789236182,0.063,183.62,183.61,34.90595539]
[1739789237680,0.063,183.65,183.62,13.41184853]
[1739789237904,0.063,183.65,183.64,36.04780686]
[1739789238194,0.063,183.65,183.64,49.45965539]
[1739789239000,0.0001,183.65,183.64,57.42265539]
[1739789239303,0.0001,183.65,183.64,58.42265539]
[1739789239693,0.0001,183.65,183.64,57.42265539]
[1739789242366,0.0001,183.65,183.64,56.42265539]
[1739789243206,0.0001,183.65,183.64,58.42265539]
[1739789244695,0.0001,183.65,183.64,57.42265539]
[1739789244899,0.0001,183.65,183.64,58.42265539]
[1739789245310,0.0001,183.68,183.67,20.0]
[1739789245603,0.0001,183.68,183.67,36.04780686]
[1739789246210,0.0001,183.68,183.67,49.45965539]
[1739789246383,0.0001,183.68,183.67,54.90415539]
[1739789246582,0.0001,183.68,183.67,49.10915366]
[1739789246876,0.0001,183.68,183.67,131.60915366]
[1739789247081,0.0001,183.68,183.67,130.60915366]
[1739789247304,0.0001,183.68,183.67,131.60915366]
[1739789247689,0.0001,183.68,183.67,132.60915366]
[1739789250907,0.0001,183.68,183.67,173.62037418]
[1739789252322,0.0001,183.68,183.67,132.60915366]
[1739789252816,0.0001,183.68,183.67,173.62037418]
[1739789253318,0.0001,183.68,183.67,173.74586418]
[1739789253826,0.063,183.74,183.71,20.0]
[1739789254003,0.063,183.74,183.73,10.25280513]
[1739789255106,0.063,183.74,183.73,15.69550513]
[1739789259511,0.063,183.76,183.73,15.69550513]
[1739789259512,0.063,183.76,183.75,20.0]
[1739789259703,0.063,183.76,183.75,30.25280513]
[1739789260092,0.063,183.79,183.75,43.66465366]
[1739789260296,0.063,183.79,183.76,10.25280513]
[1739789260597,0.063,183.79,183.75,20.0]
[1739789261418,0.063,183.79,183.73,10.25280513]
[1739789261610,0.12549,183.78,183.72,15.69580513]
[1739789263113,0.063,183.79,183.74,10.25280513]
[1739789263508,0.063,183.79,183.75,10.25280513]
[1739789264603,0.063,183.79,183.76,10.25280513]
[1739789265121,0.063,183.79,183.77,10.25280513]
[1739789266125,0.063,183.79,183.78,5.4412]
[1739789267004,0.063,183.79,183.78,15.69400513]
[1739789267404,0.063,183.79,183.78,5.4412]
[1739789267606,0.063,183.79,183.74,10.25280513]
[1739789268024,0.063,183.79,183.72,19.0503]
[1739789268025,0.063,183.79,183.75,10.25280513]
[1739789268326,0.063,183.79,183.76,5.4418]
[1739789268529,0.063,183.79,183.77,10.25280513]
[1739789269640,0.063,183.79,183.78,10.25280513]
[1739789270127,0.063,183.79,183.78,15.69400513]
[1739789273225,0.063,183.79,183.78,5.4412]
[1739789274330,0.063,183.79,183.78,15.69400513]
[1739789274532,0.063,183.81,183.78,15.69400513]
[1739789274533,0.063,183.81,183.8,30.25280513]
[1739789275517,0.063,183.81,183.8,20.0]
[1739789276534,0.063,183.81,183.8,5.4406]
[1739789277811,0.0001,183.81,183.8,15.69340513]
[1739789278324,0.0001,183.81,183.8,35.69340513]
[1739789279745,0.0001,183.81,183.8,15.69340513]
[1739789280115,0.0001,183.81,183.8,16.69340513]
[1739789280537,0.0001,183.81,183.8,30.10525366]
[1739789281950,0.0001,183.81,183.8,5.4406]
[1739789282132,0.0001,183.81,183.8,35.69340513]
[1739789282330,0.0001,183.81,183.8,36.69340513]
[1739789282525,0.0001,183.81,183.8,50.10525366]
[1739789284038,0.063,183.86,183.83,20.0]
[1739789284238,0.063,183.86,183.83,30.25280513]
[1739789284555,0.063,183.86,183.84,10.25280513]
[1739789284852,0.063,183.86,183.82,10.25280513]
[1739789285028,0.063,183.86,183.81,10.25280513]
[1739789286147,0.063,183.86,183.85,20.0]
[1739789286339,0.063,183.86,183.82,29.29310513]
[1739789291847,0.18849,183.86,183.82,29.29310513]
[1739789295255,0.063,183.86,183.84,10.25280513]
[1739789296640,0.063,183.86,183.8,1.0]
[1739789296641,0.063,183.86,183.83,5.4398]
[1739789296837,0.063,183.86,183.81,5.4404]
[1739789297241,0.12549,183.84,183.81,5.4404]
[1739789298254,0.12549,183.84,183.79,19.0433]
[1739789298434,0.12549,183.82,183.79,5.4409]
[1739789298634,0.12549,183.82,183.79,15.69370513]
[1739789298933,0.12549,183.82,183.8,10.25280513]
[1739789299346,0.063,183.86,183.8,10.25280513]
[1739789299539,0.063,183.86,183.81,10.25280513]
[1739789299958,0.063,183.86,183.82,10.25280513]
[1739789300681,0.063,183.86,183.79,19.0433]
[1739789300682,0.063,183.86,183.81,10.25280513]
[1739789301772,0.43947,183.86,183.79,10.25280513]
[1739789302472,0.43947,183.86,183.8,10.25280513]
[1739789302644,0.43947,183.86,183.81,5.4404]
[1739789307370,0.43947,183.86,183.81,5.5034]
[1739789311554,10.69227513,183.86,183.81,5.5034]
[1739789312088,0.25098,183.83,183.81,5.5034]
[1739789313378,0.25098,183.83,183.81,0.063]
[1739789313969,0.37647,183.82,183.81,0.063]
[1739789314172,10.62927513,183.82,183.81,0.063]
[1739789316185,10.25280513,183.82,183.81,0.063]
[1739789317469,10.25280513,183.83,183.81,0.063]
[1739789318386,0.37647,183.82,183.81,0.063]
[1739789319204,0.12549,183.82,183.81,0.063]
[1739789319595,0.37647,183.82,183.81,0.063]
[1739789319769,10.62927513,183.82,183.81,0.063]
[1739789320400,0.37647,183.82,183.81,0.063]
[1739789323202,0.25098,183.82,183.81,0.063]
[1739789323588,0.03,183.83,183.81,0.063]
[1739789327588,0.25098,183.82,183.81,0.063]
[1739789328615,10.62927513,183.82,183.81,0.063]
[1739789332425,0.37647,183.82,183.81,0.063]
[1739789333307,0.03,183.83,183.81,10.31580513]
[1739789333612,0.03,183.83,183.81,0.063]
[1739789340520,0.03,183.83,183.81,5.5034]
[1739789342514,10.28280513,183.83,183.81,0.063]